Workbook

Sheet Angaben
B1: Gleitzonenrechner
B3: =IFERROR(CONCATENATE(" Beitragsberechnung vers.pflichtiger Beschäftigter innerhalb der Gleitzone (",UGrenz+0.01," € bis ",TEXT(OGrenz,"000,00")," €)"),"Beitragsberechnung vers.pfl. Beschäftigter innerhalb der Gleitzone ") -> Beitragsberechnung vers.pflichtiger Beschäftigter innerhalb der Gleitzone (450,01 € bis 850,00 €)
B4: ="Beitragsjahr: 1. Halbjahr " & Gew_Jahr -> Beitragsjahr: 1. Halbjahr 2019
B5: Zutreffende Sonderregelungen: | G5: Individuelle Angaben:
G7: Angabe des individuellen KV-Zusatzbeitragssatzes: | J7: =BS_KV_Zu/100 -> 0.009
G9: Gültiger KV-Beitragssatz: | J9: =IFERROR(BS_KV_allg/100,"") -> 0.146
G12: Beitragszuschlag wegen Kinderlosigkeit in der PV:
G14: Allgemeine Beitragssätze der Sozialversicherung:
G16: Durchschnittlicher Gesamtsozialversicherungsbeitragssatz | J16: =IFERROR(Steuerung!C7/100,"") -> 0.3965
G18: allgemeiner Beitragssatz Krankenversicherung | J18: =IFERROR(Steuerung!C8/100,"") -> 0.146
G19: durchschnittl. Zusatzbeitragssatz Krankenversicherung | J19: =IFERROR(Steuerung!C12/100,"") -> 0.009
G20: Beitragssatz Rentenversicherung | J20: =IFERROR(nRV_Satz_Jahr/100,"") -> 0.186
G21: Beitragssatz Arbeitslosenversicherung | J21: =IFERROR(nAV_Satz_Jahr/100,"") -> 0.025
G22: Beitragssatz Pflegeversicherung | J22: =IFERROR(nPV_Satz_Jahr/100,"") -> 0.0305
G24: Zutreffende Arbeitgeber-Umlagen
G26: U1 - Krankheitsfall | J26: =S_U1_Satz -> 0
G28: U2 - Mutterschaft | J28: =S_U2_Satz -> 0
G30: Insolvenzumlage | J30: =IFERROR(S_U3_Satz,"") -> 0

Sheet Dialog
B1: =CONCATENATE(" Beitragsberechnung vers.pfl. Beschäftigter innerhalb der Gleitzone (",UGrenz+0.01," € bis ",TEXT(OGrenz,"000,00")," €)") -> Beitragsberechnung vers.pfl. Beschäftigter innerhalb der Gleitzone (450,01 € bis 850,00 €)
B2: ="Beitragsjahr: 1. Halbjahr "&Zeitraum -> Beitragsjahr: 1. Halbjahr 2019
B4: Berechnungsgrundlagen: | F4: Aktive Sonderregelungen: | K4: ohne Sonderfall
D5: Monatliches Arbeitsentgelt: | F5: KV: | G5: allgemeiner Beitragssatz
D7: Gleitzonenentgelt: | F7: RV:
F9: AV:
F11: PV: | G11: Zuschlag wegen Kinderlosigkeit
F13: Sonderfälle:
B17: Voller SV-Beitrag: | D17: Arbeitgeberanteile: | F17: Arbeitnehmeranteile: | H17: Beitragssatz:
B18: KV: | D18: KV: | F18: KV: | H18: KV:
B20: RV: | D20: RV: | F20: RV: | H20: RV:
N21: =L21*3 -> 0
B22: AV: | D22: AV: | F22: AV: | H22: AV:
B24: PV: | D24: PV: | F24: PV: | H24: PV:
B26: =IF(AND(S_KV_PV_frei<>TRUE,BS_KV_Zu<>0),"Zusatz KV:","") -> Zusatz KV: | D26: =B26 -> Zusatz KV: | F26: =B26 -> Zusatz KV: | H26: =B26 -> Zusatz KV:
B28: =IF(S_PV_Zu=1,"Zuschl. PV:","") -> Zuschl. PV: | D28: =B28 -> Zuschl. PV: | F28: =B28 -> Zuschl. PV: | H28: =B28 -> Zuschl. PV:
B30: SV-Gesamt: | C30: =SUM(C18:C28) -> 0 | D30: SV-Gesamt: | E30: =SUM(E18:E28) -> 0 | F30: SV-Gesamt: | G30: =SUM(G18:G28) -> 0
B32: =IF(S_U1=TRUE,"U1:","") ->  | D32: =B32 ->  | H32: =B32 -> 
B33: =IF(S_U2=TRUE,"U2:","") ->  | D33: =B33 ->  | H33: =B33 -> 
B34: =IF(S_U3=TRUE,"Insolvenzuml.:","") ->  | D34: =B34 ->  | H34: =B34 -> 
B36: =IF(OR(S_U1=TRUE,S_U2=TRUE,S_U3=TRUE),"Uml.-Gesamt:","") ->  | C36: =IF(OR(S_U1=TRUE,S_U2=TRUE,S_U3=TRUE),SUM(C32:C34),"") ->  | D36: =B36 ->  | E36: =IF(OR(S_U1=TRUE,S_U2=TRUE,S_U3=TRUE),SUM(E32:E35),"") -> 
B38: =IF(OR(S_U1=TRUE,S_U2=TRUE,S_U3=TRUE),"Insgesamt:","") ->  | C38: =IF(OR(S_U1=TRUE,S_U2=TRUE,S_U3=TRUE),SUM(C30:C34),"") ->  | D38: =B38 ->  | E38: =IF(OR(S_U1=TRUE,S_U2=TRUE,S_U3=TRUE),SUM(E30:E34),"") ->  | F38: =B38 ->  | G38: =IF(OR(S_U1=TRUE,S_U2=TRUE,S_U3=TRUE),SUM(G30:G34),"") -> 

Sheet Tabelle
C1: Beitragspflichtige Einnahmen und Beitragsberechnung versicherungspfl. Beschäftigter
C2: =CONCATENATE("innerhalb der Gleitzone von ",UGrenz+0.01," € bis ",TEXT(OGrenz,"000,00")," €") -> innerhalb der Gleitzone von 450,01 € bis 850,00 €
C3: (§ 20 Abs.2 SGB IV, § 344 Abs.4 SGB III, § 226 Abs.4 SGB V, § 163 Abs.10 SGB VI, § 58 Abs.5 SGB XI)
C5: ="Beitragsjahr: 1. Halbjahr " & Gew_Jahr -> Beitragsjahr: 1. Halbjahr 2019
C6: monatliches Arbeitsentgelt | D6: ="Beitragsbemes-sungsgrundlage bei: "&Steuerung!C7&" %" -> Beitragsbemes-sungsgrundlage bei: 39,65 % | F6: monatliches Arbeitsentgelt | G6: =D6 -> Beitragsbemes-sungsgrundlage bei: 39,65 %
C7: =UGrenz+0.01 -> 450.01 | D7: =ROUND(Faktor * UGrenz + ((OGrenz / (OGrenz - UGrenz)) - (UGrenz / (OGrenz - UGrenz)) * Faktor) * (C7 - UGrenz), 2) -> 340.48 | F7: =C47+5 -> 655 | G7: =ROUND(Faktor * UGrenz + ((OGrenz / (OGrenz - UGrenz)) - (UGrenz / (OGrenz - UGrenz)) * Faktor) * (F7 - UGrenz), 2) -> 601.6
C8: =UGrenz+5 -> 455 | D8: =ROUND(Faktor * UGrenz + ((OGrenz / (OGrenz - UGrenz)) - (UGrenz / (OGrenz - UGrenz)) * Faktor) * (C8 - UGrenz), 2) -> 346.84 | F8: =F7+5 -> 660 | G8: =ROUND(Faktor * UGrenz + ((OGrenz / (OGrenz - UGrenz)) - (UGrenz / (OGrenz - UGrenz)) * Faktor) * (F8 - UGrenz), 2) -> 607.97
C9: =C8+5 -> 460 | D9: =ROUND(Faktor * UGrenz + ((OGrenz / (OGrenz - UGrenz)) - (UGrenz / (OGrenz - UGrenz)) * Faktor) * (C9 - UGrenz), 2) -> 353.21 | F9: =F8+5 -> 665 | G9: =ROUND(Faktor * UGrenz + ((OGrenz / (OGrenz - UGrenz)) - (UGrenz / (OGrenz - UGrenz)) * Faktor) * (F9 - UGrenz), 2) -> 614.34
C10: 465 | D10: 359.58 | F10: 670 | G10: 620.71
C11: 470 | D11: 365.95 | F11: 675 | G11: 627.08
C12: 475 | D12: 372.32 | F12: 680 | G12: 633.45
C13: 480 | D13: 378.68 | F13: 685 | G13: 639.82
C14: 485 | D14: 385.05 | F14: 690 | G14: 646.19
C15: 490 | D15: 391.42 | F15: 695 | G15: 652.56
C16: 495 | D16: 397.79 | F16: 700 | G16: 658.93
C17: 500 | D17: 404.16 | F17: 705 | G17: 665.3
C18: 505 | D18: =ROUND(Faktor * UGrenz + ((OGrenz / (OGrenz - UGrenz)) - (UGrenz / (OGrenz - UGrenz)) * Faktor) * (C18 - UGrenz), 2) -> 410.53 | F18: 710 | G18: =ROUND(Faktor * UGrenz + ((OGrenz / (OGrenz - UGrenz)) - (UGrenz / (OGrenz - UGrenz)) * Faktor) * (F18 - UGrenz), 2) -> 671.66
C19: 510 | D19: 416.9 | F19: 715 | G19: =ROUND(Faktor * UGrenz + ((OGrenz / (OGrenz - UGrenz)) - (UGrenz / (OGrenz - UGrenz)) * Faktor) * (F19 - UGrenz), 2) -> 678.03
C20: 515 | D20: 423.27 | F20: 720 | G20: =ROUND(Faktor * UGrenz + ((OGrenz / (OGrenz - UGrenz)) - (UGrenz / (OGrenz - UGrenz)) * Faktor) * (F20 - UGrenz), 2) -> 684.4
C21: 520 | D21: 429.64 | F21: 725 | G21: =ROUND(Faktor * UGrenz + ((OGrenz / (OGrenz - UGrenz)) - (UGrenz / (OGrenz - UGrenz)) * Faktor) * (F21 - UGrenz), 2) -> 690.77
C22: 525 | D22: 436.01 | F22: 730 | G22: =ROUND(Faktor * UGrenz + ((OGrenz / (OGrenz - UGrenz)) - (UGrenz / (OGrenz - UGrenz)) * Faktor) * (F22 - UGrenz), 2) -> 697.14
C23: =C22+5 -> 530 | D23: 442.38 | F23: 735 | G23: =ROUND(Faktor * UGrenz + ((OGrenz / (OGrenz - UGrenz)) - (UGrenz / (OGrenz - UGrenz)) * Faktor) * (F23 - UGrenz), 2) -> 703.51
C24: 535 | D24: 448.75 | F24: 740 | G24: 709.88
C25: 540 | D25: 455.11 | F25: 745 | G25: 716.25
C26: 545 | D26: 461.48 | F26: 750 | G26: 722.62
C27: 550 | D27: 467.85 | F27: 755 | G27: 728.99
C28: 555 | D28: 474.22 | F28: 760 | G28: 735.36
C29: 560 | D29: 480.59 | F29: =F28+5 -> 765 | G29: =ROUND(Faktor * UGrenz + ((OGrenz / (OGrenz - UGrenz)) - (UGrenz / (OGrenz - UGrenz)) * Faktor) * (F29 - UGrenz), 2) -> 741.72
C30: =C29+5 -> 565 | D30: 486.96 | F30: =F29+5 -> 770 | G30: =ROUND(Faktor * UGrenz + ((OGrenz / (OGrenz - UGrenz)) - (UGrenz / (OGrenz - UGrenz)) * Faktor) * (F30 - UGrenz), 2) -> 748.09
C31: 570 | D31: 493.33 | F31: =F30+5 -> 775 | G31: =ROUND(Faktor * UGrenz + ((OGrenz / (OGrenz - UGrenz)) - (UGrenz / (OGrenz - UGrenz)) * Faktor) * (F31 - UGrenz), 2) -> 754.46
C32: 575 | D32: 499.7 | F32: 780 | G32: 760.83
C33: 580 | D33: 506.07 | F33: 785 | G33: 767.2
C34: 585 | D34: 512.44 | F34: 790 | G34: 773.57
C35: 590 | D35: 518.81 | F35: 795 | G35: 779.94
C36: 595 | D36: 525.17 | F36: 800 | G36: 786.31
C37: 600 | D37: 531.54 | F37: 805 | G37: 792.68
C38: 605 | D38: 537.91 | F38: 810 | G38: =ROUND(Faktor * UGrenz + ((OGrenz / (OGrenz - UGrenz)) - (UGrenz / (OGrenz - UGrenz)) * Faktor) * (F38 - UGrenz), 2) -> 799.05
C39: 610 | D39: 544.28 | F39: 815 | G39: 805.42
C40: 615 | D40: 550.65 | F40: 820 | G40: 811.79
C41: 620 | D41: 557.02 | F41: 825 | G41: 818.15
C42: 625 | D42: 563.39 | F42: 830 | G42: 824.52
C43: 630 | D43: 569.76 | F43: 835 | G43: 830.89
C44: 635 | D44: 576.13 | F44: 840 | G44: 837.26
C45: 640 | D45: 582.5 | F45: 845 | G45: 843.63
C46: =C45+5 -> 645 | D46: 588.87 | F46: 850 | G46: 850
C47: =C46+5 -> 650 | D47: =ROUND(Faktor * UGrenz + ((OGrenz / (OGrenz - UGrenz)) - (UGrenz / (OGrenz - UGrenz)) * Faktor) * (C47 - UGrenz), 2) -> 595.24

Sheet Steuerung (hidden)
A1: Bezeichnung | B1: Rückgabe | C1: Wert | D1: TabellenSpalte
A2: Gewähltes Jahr | B2: =LC_Liste_Jahr -> 1 | C2: =VALUE(RIGHT(VLOOKUP(B2,Jahr,2,0),4)) -> 2019
A3: Beitragszeitraum | B3: 1 | C3: =IFERROR(VLOOKUP(B3,Jahr,D3,0),"Fehler") -> 2019 | D3: =SUMIF(Listen!$F$19:$U$20,A3,Listen!$F$20:$U$20) -> 2
A4: Untergrenze | B4: =B2 -> 1 | C4: =VLOOKUP($B4,Jahr,$D4,0) -> 450 | D4: =SUMIF(Listen!$F$19:$U$20,A4,Listen!$F$20:$U$20) -> 11
A5: Obergrenze | B5: =B2 -> 1 | C5: =VLOOKUP($B5,Jahr,$D5,0) -> 850 | D5: =SUMIF(Listen!$F$19:$U$20,A5,Listen!$F$20:$U$20) -> 12
A6: Faktor | C6: =ROUND(30/$C$7,4) -> 0.7566
A7: Summe SV | B7: =B2 -> 1 | C7: =VLOOKUP(B7,Jahr,D7,0) -> 39.65 | D7: =SUMIF(Listen!$F$19:$U$20,A7,Listen!$F$20:$U$20) -> 3
A8: KV allg | B8: =B2 -> 1 | C8: 14.6 | D8: =SUMIF(Listen!$F$19:$U$20,A8,Listen!$F$20:$U$20) -> 9
A9: RV | B9: =B2 -> 1 | C9: 18.6 | D9: =SUMIF(Listen!$F$19:$U$20,A9,Listen!$F$20:$U$20) -> 5
A10: AV | B10: =B2 -> 1 | C10: 2.5 | D10: =SUMIF(Listen!$F$19:$U$20,A10,Listen!$F$20:$U$20) -> 6
A11: PV | B11: =B2 -> 1 | C11: 3.05 | D11: =SUMIF(Listen!$F$19:$U$20,A11,Listen!$F$20:$U$20) -> 7
A12: Zusatz KV | B12: =B2 -> 1 | C12: 0.9 | D12: =SUMIF(Listen!$F$19:$U$20,A12,Listen!$F$20:$U$20) -> 4
A13: KV erm | B13: =B2 -> 1 | C13: =VLOOKUP(B13,Jahr,D13,0) -> 14 | D13: =SUMIF(Listen!$F$19:$U$20,A13,Listen!$F$20:$U$20) -> 10
A14: KV allg | B14: =B2 -> 1 | C14: =VLOOKUP(B14,Jahr,D14,0) -> 14.6 | D14: =SUMIF(Listen!$F$19:$U$20,A14,Listen!$F$20:$U$20) -> 9
A15: KV Beitragssatz | B15: =IF(S_BS_allg,1,2) -> 1 | C15: =IF(S_KV_allg_erm.BS=2,C13,C14) -> 14.6 | F15: S_BS_allg | G15: TRUE
A16: KV individueller ZusatzBS | B16: 13 | C16: =VLOOKUP(B16,KV,2,0)*100 -> 0.9 | F16: S_BS_ermäßigt | G16: FALSE
A17: RV Knappsch. | B17: =B2 -> 1 | C17: =VLOOKUP(B17,Jahr,D17,0) -> 24.7 | D17: =SUMIF(Listen!$F$19:$U$20,A17,Listen!$F$20:$U$20) -> 8
A18: AG-Ant. Sachsen | B18: =B2 -> 1 | C18: =VLOOKUP(B18,Jahr,D18,0) -> 0.01025 | D18: =SUMIF(Listen!$F$19:$U$20,A18,Listen!$F$20:$U$20) -> 13
A19: AN-Ant. Sachsen | B19: =B2 -> 1 | C19: =VLOOKUP(B19,Jahr,D19,0) -> 0 | D19: =SUMIF(Listen!$F$19:$U$20,A19,Listen!$F$20:$U$20) -> 14
A20: Zuschlag wg Kinderlosigkeit | B20: 1 | C20: =IF(S_PV_Zu=1,VLOOKUP(B2,Jahr,D20,0),0) -> 0.25 | D20: =SUMIF(Listen!$F$19:$U$20,A20,Listen!$F$20:$U$20) -> 16
A21: U1 - Krankheitsfall | B21: FALSE | C21: 0
A22: U2 - Mutterschaft | B22: FALSE | C22: 0
A23: Insolvenzgeld | B23: FALSE | C23: =IF(S_U3=TRUE,VLOOKUP(B5,Jahr,D23,0),0) -> 0 | D23: =SUMIF(Listen!$F$19:$U$20,A23,Listen!$F$20:$U$20) -> 15
A25: Frei KV/PV | B25: FALSE
A26: PV Sachsen | B26: FALSE
A27: Frei RV
A28: RV nur AG | B28: FALSE
A29: RV Knappsch.
A30: nur AV | B30: 0
A31: Frei AV | B31: FALSE
A33: Sonderfall 1 | B33: FALSE
A34: Sonderfall 2 | B34: FALSE
A35: Sonderfall2 Option | B35: =IF(S_Sonder_2_Opt1,1,2) -> 2 | F35: S_Sonder_2_Opt1 | I35: =IF(S_Sonder_2_Opt1,1,2) -> 2
A36: Mehrfachbesch. | B36: FALSE | F36: S_Sonder_2_Opt2
A37: Sonderfall 4 | B37: FALSE
A38: Azubi
A40: Auswahl Sonderfall | B40: =INDIRECT("Steuerung!A"&58+nAuswahl_Sonder) -> 0 | C40: =SUM(C61:C69) -> 2
A41: Auswahl KV | C41: =SUM(C72:C74) -> 12
A42: Auswahl PV | C42: =SUM(C77:C79) -> 20
A43: Auswahl RV | C43: =SUM(C82:C86) -> 30
A44: Auswahl AV | C44: =SUM(C89:C91) -> 40
A45: PV Kinderzuschlag | B45: =IF(AND(S_KV_PV_frei<>TRUE,S_PV_Zu=1),TRUE) -> TRUE | C45: =IF(B45,50,"") -> 50
A48: Opt_Sond2_Tage
A49: Opt_Sond2_Stunden
A50: Opt_Sond2_Wostu
A51: Opt_Sond2_Entgelt
A52: AE
A53: Sond3_Entgelt
A54: Sond3_Sonstentgelt
A55: Sond3_Quotient | B55: 0.2727272727
A57: S2_O1_O2 | B57: =IF(S_Sonder_2_Opt=1," Tagen"," geleist. h ") -> geleist. h
A58: Anzahl_S2_O1_O2 | B58: =IF(S_Sonder_2_Opt=1,VALUE(B48),VALUE(B49)) -> 0
A59: S2_O1_O2_Zusatz | B59: =IF(S_Sonder_2_Opt=2,"/ "&VALUE(B50)&" h wtl. Regel-AZ","") -> / 0 h wtl. Regel-AZ | H59: S_Sonder_1 | I59: S_Sonder_2 | J59: S_Mehrfach | K59: S_Sonder_4
H60: =S_Sonder_1 -> FALSE | I60: =S_Sonder_2 -> FALSE | J60: =S_Mehrfach -> FALSE | K60: =S_Sonder_4 -> FALSE
A61: AE ohne Sonder | B61: =IF(AND(S_Sonder_1<>TRUE,S_Sonder_2<>TRUE,S_Mehrfach<>TRUE,S_Sonder_4<>TRUE),TRUE) -> TRUE | C61: =IF(B61,1,"") -> 1 | E61: 1 | F61: OHNE | H61: F | I61: F | J61: F | K61: F
A62: Mehrfachbesch. | B62: =IF(AND(S_Sonder_1<>TRUE,S_Sonder_2<>TRUE,S_Mehrfach=TRUE,S_Sonder_4<>TRUE),TRUE) -> FALSE | C62: =IF(B62,2,"") ->  | E62: 2 | F62: Mehrfach | H62: F | I62: F | J62: W | K62: F
A63: Teilmonate | B63: =IF(AND(S_Sonder_1<>TRUE,S_Sonder_2=TRUE,S_Mehrfach<>TRUE,S_Sonder_4<>TRUE),TRUE) -> FALSE | C63: =IF(B63,3,"") ->  | E63: 3 | F63: Teil monat | H63: F | I63: W | J63: F | K63: F
A64: mit Einmalzahlung | B64: =IF(AND(S_Sonder_1<>TRUE,S_Sonder_2<>TRUE,S_Mehrfach<>TRUE,S_Sonder_4=TRUE),TRUE) -> FALSE | C64: =IF(B64,4,"") ->  | E64: 4 | F64: Einmal zahlung | H64: F | I64: F | J64: F | K64: W
A65: Teilmonat bei Mehrfach | B65: =IF(AND(S_Sonder_1<>TRUE,S_Sonder_2=TRUE,S_Mehrfach=TRUE,S_Sonder_4<>TRUE),TRUE) -> FALSE | C65: =IF(B65,5,"") ->  | E65: 5 | F65: Teilmonat bei Mehrfach beschäftigung | H65: F | I65: W | J65: W | K65: F
A66: Einmalzahlung bei Teilmonat | B66: =IF(AND(S_Sonder_1<>TRUE,S_Sonder_2=TRUE,S_Mehrfach<>TRUE,S_Sonder_4=TRUE),TRUE) -> FALSE | C66: =IF(B66,6,"") ->  | E66: 6 | F66: Einmalzahlung bei Teilmonat | H66: F | I66: W | J66: F | K66: W
A67: AE unter UGrenze | B67: =IF(AND(S_Sonder_1=TRUE,S_Sonder_2<>TRUE,S_Mehrfach<>TRUE,S_Sonder_4<>TRUE),TRUE) -> FALSE | C67: =IF(B67,7,"") ->  | E67: 7 | F67: unter UnterGrenze | H67: W | I67: F | J67: F | K67: F
A68: AE unter UGrenze und Teilmonat | B68: =IF(AND(S_Sonder_1=TRUE,S_Sonder_2=TRUE,S_Mehrfach<>TRUE,S_Sonder_4<>TRUE),TRUE) -> FALSE | C68: =IF(B68,8,"") ->  | E68: 8 | F68: unter UnterGrenze und Teilmonat | H68: W | I68: W | J68: F | K68: F
C69: =SUM(C61:C68) -> 1 | E69: 0 | F69: nicht zulässig
A72: KV ohne Sonder | B72: =IF(S_KV_PV_frei<>TRUE,TRUE) -> TRUE | C72: =IF(B72,10,"") -> 10
A73: KV frei | B73: =IF(S_KV_PV_frei=TRUE,TRUE) -> FALSE | C73: =IF(B73,11,"") -> 
A74: KV allg / ermäßigt | B74: =IF((S_KV_PV_frei<>TRUE),TRUE) -> TRUE | C74: =IF(B74,S_KV_allg_erm.BS+1,"") -> 2
A77: PV ohne Sonder | B77: =IF(AND(S_KV_PV_frei<>TRUE,S_PV_Sachsen<>TRUE),TRUE) -> TRUE | C77: =IF(B77,20,"") -> 20
A78: PV frei | B78: =IF(S_KV_PV_frei=TRUE,TRUE) -> FALSE | C78: =IF(B78,21,"") -> 
A79: PV Sachsen | B79: =IF(AND(S_KV_PV_frei<>TRUE,S_PV_Sachsen=TRUE),TRUE) -> FALSE | C79: =IF(B79,22,"") -> 
A82: RV ohne Sonder | B82: =IF(AND(S_RV_frei<>TRUE,S_RV_aus_t.E.<>TRUE,S_RV_Knapp<>TRUE),TRUE) -> TRUE | C82: =IF(B82,30,"") -> 30
A83: RV frei | B83: =IF(S_RV_frei=TRUE,TRUE) -> FALSE | C83: =IF(B83,31,"") -> 
A84: RV nur AG | B84: =IF(AND(S_RV_frei<>TRUE,S_RV_aus_t.E.=TRUE,S_RV_Knapp<>TRUE),TRUE) -> FALSE | C84: =IF(B84,32,"") -> 
A85: RV Knappschaft | B85: =IF(AND(S_RV_frei<>TRUE,S_RV_aus_t.E.<>TRUE,S_RV_Knapp=TRUE),TRUE) -> FALSE | C85: =IF(B85,33,"") -> 
A86: RV nur AG und Knappschaft | B86: =IF(AND(S_RV_frei<>TRUE,S_RV_aus_t.E.=TRUE,S_RV_Knapp=TRUE),TRUE) -> FALSE | C86: =IF(B86,34,"") -> 
A89: AV ohne Sonder | B89: =IF(S_AV_frei<>TRUE,TRUE) -> TRUE | C89: =IF(B89,40,"") -> 40
A90: AV frei | B90: =IF(S_AV_frei=TRUE,TRUE) -> FALSE | C90: =IF(B90,41,"") -> 

Sheet Listen (hidden)
B1: Stand: | C1: 2019-01-07 | G1: Jahr | I1: Zusatz KV | J1: RV | K1: AV | L1: PV | M1: RV Knappsch. | N1: KV allg | O1: KV erm | P1: Untergrenze | Q1: Obergrenze | R1: AG-Ant. Sachsen | S1: AN-Ant. Sachsen | T1: Insolvenzgeld | U1: Zuschlag wg Kinderlosigkeit | AA1: SUCH | AB1: SFall-Nr | AC1: Zeile | AD1: Spalte | AE1: Text | AF1: SFall
B2: KV | AA2: =AB2*100+AC2 -> 105 | AB2: 1 | AC2: 5 | AD2: 4 | AE2: Monatliches Arbeitsentgelt: | AF2: ohne Sonderfall
B3: 1 | C3: 0.002 | F3: 1 | G3: 2019 | H3: =I3+J3+K3+L3+N3 -> 39.65 | I3: 0.9 | J3: 18.6 | K3: 2.5 | L3: 3.05 | M3: 24.7 | N3: 14.6 | O3: 14 | P3: 450 | Q3: 850 | R3: 0.01025 | T3: 0.0006 | U3: 0.25 | AA3: 107 | AB3: 1 | AC3: 7 | AD3: 4 | AE3: Gleitzonenentgelt: | AF3: ohne Sonderfall
B4: 2 | C4: 0.003 | F4: =F3+1 -> 2 | G4: 2018 | H4: =I4+J4+K4+L4+N4 -> 39.75 | I4: 1 | J4: 18.6 | K4: 3 | L4: 2.55 | M4: 24.7 | N4: 14.6 | O4: 14 | P4: 450 | Q4: 850 | R4: 0.00775 | T4: 0.0006 | U4: 0.25 | AA4: 205 | AB4: 2 | AC4: 5 | AD4: 4 | AE4: Arbeitsentgelt für diese Tätigkeit | AF4: Mehrfachbeschäftigung
B5: 3 | C5: 0.0035 | F5: =F4+1 -> 3 | G5: 2017 | H5: =I5+J5+K5+L5+N5 -> 39.95 | I5: 1.1 | J5: 18.7 | K5: 3 | L5: 2.55 | M5: 24.8 | N5: 14.6 | O5: 14 | P5: 450 | Q5: 850 | R5: 0.00775 | T5: 0.0009 | U5: 0.25 | AA5: 207 | AB5: 2 | AC5: 7 | AD5: 4 | AE5: Gleitzonenentgelt für diese Tätigkeit: | AF5: Mehrfachbeschäftigung
B6: 4 | C6: 0.0039 | F6: =F5+1 -> 4 | G6: 2016 | H6: =I6+J6+K6+L6+N6 -> 39.75 | I6: 1.1 | J6: 18.7 | K6: 3 | L6: 2.35 | M6: 24.8 | N6: 14.6 | O6: 14 | P6: 450 | Q6: 850 | R6: 0.00675 | S6: 0.01675 | T6: 0.0012 | U6: 0.25 | AA6: 209 | AB6: 2 | AC6: 9 | AD6: 4 | AE6: gesamtes monatliches Arbeitsentgelt: | AF6: Mehrfachbeschäftigung
B7: 5 | C7: 0.004 | F7: =F6+1 -> 5 | G7: 2015 | H7: =I7+J7+K7+L7+N7 -> 39.55 | I7: 0.9 | J7: 18.7 | K7: 3 | L7: 2.35 | M7: 24.8 | N7: 14.6 | O7: 14 | P7: 450 | Q7: 850 | R7: 0.00675 | S7: 0.01675 | T7: 0.0015 | U7: 0.25 | AA7: 211 | AB7: 2 | AC7: 11 | AD7: 4 | AE7: gesamtes monatliches Gleitzonenentgelt: | AF7: Mehrfachbeschäftigung
B8: 6 | C8: 0.0044 | AA8: =AB8*100+AC8 -> 305 | AB8: 3 | AC8: 5 | AD8: 4 | AE8: Teilmonatsentgelt: | AF8: teilmonatl. Arbeitsentgelt
B9: 7 | C9: 0.005 | AA9: 307 | AB9: 3 | AC9: 7 | AD9: 4 | AE9: Teil-Gleitzonenentgelt: | AF9: teilmonatl. Arbeitsentgelt
B10: 8 | C10: 0.006 | AA10: 309 | AB10: 3 | AC10: 9 | AD10: 4 | AE10: fiktives monatliches Arbeitsentgelt: | AF10: teilmonatl. Arbeitsentgelt
B11: 9 | C11: 0.0065 | AA11: 311 | AB11: 3 | AC11: 11 | AD11: 4 | AE11: fiktives monatliches Gleitzonenentgelt: | AF11: teilmonatl. Arbeitsentgelt
B12: 10 | C12: 0.007 | AA12: 405 | AB12: 4 | AC12: 5 | AD12: 4 | AE12: Arbeitsentgelt gesamt: | AF12: monatliches Arbeitsentgelt plus Einmalzahlung
B13: 11 | C13: 0.0079 | AA13: 407 | AB13: 4 | AC13: 7 | AD13: 4 | AE13: Gleitzonenentgelt gesamt: | AF13: monatliches Arbeitsentgelt plus Einmalzahlung
B14: 12 | C14: 0.008 | AA14: 409 | AB14: 4 | AC14: 9 | AD14: 4 | AE14: monatliches Arbeitsentgelt: | AF14: monatliches Arbeitsentgelt plus Einmalzahlung
B15: 13 | C15: 0.009 | AA15: 411 | AB15: 4 | AC15: 11 | AD15: 4 | AE15: Einmalzahlung | AF15: monatliches Arbeitsentgelt plus Einmalzahlung
B16: 14 | C16: 0.0094 | AA16: 505 | AB16: 5 | AC16: 5 | AD16: 4 | AE16: Arbeitsentgelt für das zu bewertende BV | AF16: Mehrfachbeschäftigung mit teilmonatl. Arbeitsentgelt
B17: 15 | C17: 0.0098 | AA17: 507 | AB17: 5 | AC17: 7 | AD17: 4 | AE17: Gleitzonenentgelt für dieses BV | AF17: Mehrfachbeschäftigung mit teilmonatl. Arbeitsentgelt
B18: 16 | C18: 0.0099 | AA18: 509 | AB18: 5 | AC18: 9 | AD18: 4 | AE18: gesamtes monatliches Gleitzonenentgelt: | AF18: Mehrfachbeschäftigung mit teilmonatl. Arbeitsentgelt
B19: 17 | C19: 0.01 | F19: Auswahl | G19: Beitragszeitraum | H19: Summe SV | I19: Zusatz KV | J19: RV | K19: AV | L19: PV | M19: RV Knappsch. | N19: KV allg | O19: KV erm | P19: Untergrenze | Q19: Obergrenze | R19: AG-Ant. Sachsen | S19: AN-Ant. Sachsen | T19: Insolvenzgeld | U19: Zuschlag wg Kinderlosigkeit | AA19: 511 | AB19: 5 | AC19: 11 | AD19: 4 | AE19: gesamtes fiktives Arbeitsentgelt: | AF19: Mehrfachbeschäftigung mit teilmonatl. Arbeitsentgelt
B20: 18 | C20: 0.011 | F20: 1 | G20: =F20+1 -> 2 | H20: =G20+1 -> 3 | I20: 4 | J20: 5 | K20: 6 | L20: 7 | M20: 8 | N20: 9 | O20: 10 | P20: 11 | Q20: 12 | R20: 13 | S20: 14 | T20: 15 | U20: 16 | AA20: 513 | AB20: 5 | AC20: 13 | AD20: 4 | AE20: gesamtes fiktives Gleitzonenentgelt: | AF20: Mehrfachbeschäftigung mit teilmonatl. Arbeitsentgelt
B21: 19 | C21: 0.0115 | AA21: 605 | AB21: 6 | AC21: 5 | AD21: 4 | AE21: Arbeitsentgelt gesamt: | AF21: teilmonatl. Arbeitsentgelt plus Einmalzahlung
B22: 20 | C22: 0.012 | AA22: 607 | AB22: 6 | AC22: 7 | AD22: 4 | AE22: Gleitzonenentgelt gesamt: | AF22: teilmonatl. Arbeitsentgelt plus Einmalzahlung
B23: 21 | C23: 0.013 | AA23: 609 | AB23: 6 | AC23: 9 | AD23: 4 | AE23: fiktives monatliches Arbeitsentgelt: | AF23: teilmonatl. Arbeitsentgelt plus Einmalzahlung
B24: 22 | C24: 0.0134 | AA24: 611 | AB24: 6 | AC24: 11 | AD24: 4 | AE24: fiktives monatliches Arbeitsentgelt gesamt: | AF24: teilmonatl. Arbeitsentgelt plus Einmalzahlung
B25: 23 | C25: 0.0139 | AA25: 613 | AB25: 6 | AC25: 13 | AD25: 4 | AE25: Teilmonatsentgelt: | AF25: teilmonatl. Arbeitsentgelt plus Einmalzahlung
B26: 24 | C26: 0.014 | AA26: 614 | AB26: 6 | AC26: 14 | AD26: 4 | AE26: Einmalzahlung: | AF26: teilmonatl. Arbeitsentgelt plus Einmalzahlung
B27: 25 | C27: 0.0144 | AA27: 705 | AB27: 7 | AC27: 5 | AD27: 4 | AE27: Monatliches Arbeitsentgelt: | AF27: monatl. Arbeitseinkommen kleiner Untergrenze
B28: 26 | C28: 0.015 | AA28: 707 | AB28: 7 | AC28: 7 | AD28: 4 | AE28: Gleitzonenentgelt: | AF28: monatl. Arbeitseinkommen kleiner Untergrenze
B29: 27 | C29: 0.016 | AA29: 805 | AB29: 8 | AC29: 5 | AD29: 4 | AE29: Teilmonatsentgelt: | AF29: monatl. Arbeitseinkommen kleiner Untergrenze und mit teilmonatl. Arbeitsentgelt
B30: 28 | C30: 0.017 | AA30: 807 | AB30: 8 | AC30: 7 | AD30: 4 | AE30: Teil-Gleitzonenentgelt: | AF30: monatl. Arbeitseinkommen kleiner Untergrenze und mit teilmonatl. Arbeitsentgelt
AA31: 809 | AB31: 8 | AC31: 9 | AD31: 4 | AE31: fiktives monatliches Arbeitsentgelt: | AF31: monatl. Arbeitseinkommen kleiner Untergrenze und mit teilmonatl. Arbeitsentgelt
AA32: 811 | AB32: 8 | AC32: 11 | AD32: 4 | AE32: fiktives monatliches Gleitzonenentgelt: | AF32: monatl. Arbeitseinkommen kleiner Untergrenze und mit teilmonatl. Arbeitsentgelt
AA33: 914 | AB33: 9 | AC33: 14 | AD33: 4 | AE33: Beitragsbemessungsgrundlage für RV: | AF33: -
AA34: 3214 | AB34: 32 | AC34: 14 | AE34: Beitragsbemessungsgrundlage für RV: | AF34: RV-Beitrag aus tatsächlichem Arbeitsentgelt
AA35: 3214 | AB35: 32 | AC35: 14 | AE35: Beitragsbemessungsgrundlage für RV: | AF35: RV-Beitrag aus tatsächlichem Arbeitsentgelt
AA36: 3414 | AB36: 34 | AC36: 14 | AE36: Beitragsbemessungsgrundlage für RV: | AF36: knappschaftl. RV-Beitrag aus tats. Arbeitsentgelt
AA37: 3414 | AB37: 34 | AC37: 14 | AE37: Beitragsbemessungsgrundlage für RV: | AF37: knappschaftl. RV-Beitrag aus tats. Arbeitsentgelt
C92: =#REF! -> 
